bitfinex-derivatives/quotes_SOLF0:USTF0_20260316
["timestamp","ask_amount","ask_price","bid_price","bid_amount"]
[1773678246845,17.79010049,93.336,93.3,3.67446975]
[1773678247048,17.79010049,93.352,93.3,3.67446975]
[1773678247449,17.75831475,93.349,93.29,3.67446975]
[1773678248752,17.77660375,93.339,93.28,3.67446975]
[1773678248947,17.77660375,93.339,93.27,3.67446975]
[1773678250250,17.77660375,93.339,93.28,3.67446975]
[1773678251854,17.77162556,93.329,93.27,3.67446975]
[1773678252854,0.06777463,93.309,93.27,3.67446975]
[1773678253055,0.06777463,93.309,93.28,3.67446975]
[1773678253456,0.06777463,93.309,93.249,33.74]
[1773678253655,17.7717476,93.316,93.28,3.67446975]
[1773678254756,17.75148749,93.349,93.29,3.67446975]
[1773678254956,17.75148749,93.349,93.3,3.67446975]
[1773678264863,3.67446975,93.34,93.273,33.74]
[1773678265059,17.81730889,93.339,93.28,3.67446975]
[1773678265263,17.81730889,93.339,93.27,3.67446975]
[1773678265462,17.81730889,93.339,93.28,3.67446975]
[1773678266864,17.81730889,93.339,93.28,3.67358803]
[1773678271064,17.79347301,93.329,93.27,3.67358803]
[1773678272368,17.79347301,93.329,93.26,3.67358803]
[1773678272667,17.79709202,93.309,93.25,3.67358803]
[1773678279767,17.79709202,93.309,93.26,3.67358803]
[1773678280971,17.79709202,93.309,93.222,19.307]
[1773678280972,17.79709202,93.309,93.25,3.67358803]
[1773678281474,17.80597164,93.299,93.24,3.67358803]
[1773678284776,17.80597164,93.299,93.23,3.67358803]
[1773678285968,17.81416405,93.289,93.23,3.67358803]
[1773678286373,17.81416405,93.289,93.198,32.16]
[1773678286374,17.8130745,93.269,93.21,3.67358803]
[1773678286572,17.8130745,93.259,93.203,462.57007129]
[1773678286770,17.8130745,93.249,93.203,462.57007129]
[1773678290474,17.8130745,93.249,93.21,3.67358803]
[1773678290777,17.8130745,93.249,93.203,462.57007129]
[1773678293077,17.8130745,93.249,93.2,3.67358803]
[1773678293577,17.8130745,93.249,93.19,3.67358803]
[1773678295471,3.67358803,93.24,93.18,3.67358803]
[1773678295671,17.79866472,93.219,93.16,3.67358803]
[1773678296078,17.79866472,93.219,93.153,33.76]
[1773678297078,17.79866472,93.219,93.16,3.67358803]
[1773678298175,17.79866472,93.219,93.18,3.67358803]
[1773678298480,17.79866472,93.219,93.16,3.67358803]
[1773678299577,17.79866472,93.219,93.157,33.76]
[1773678300276,17.75740915,93.209,93.157,2.25007905]
[1773678300577,3.66360243,93.189,93.126,3.83224813]
[1773678300878,3.66360243,93.189,93.128,3.83224813]
[1773678301078,3.66360243,93.189,93.131,3.83224813]
[1773678301480,3.66360243,93.189,93.13,37.43358803]
[1773678301481,3.66360243,93.189,93.13,33.76]
[1773678301679,3.66360243,93.189,93.13,37.43358803]
[1773678302484,3.66360243,93.159,93.095,3.83224813]
[1773678303383,3.66360243,93.139,93.07,37.43358803]
[1773678303678,3.66360243,93.129,93.07,3.67358803]
[1773678304382,3.66360243,93.129,93.081,3.83224813]
[1773678305373,3.66360243,93.129,93.056,33.76]
[1773678305374,3.66360243,93.129,93.071,3.83224813]
[1773678305672,19.316,93.178,93.081,3.83224813]
[1773678305673,3.67358803,93.14,93.081,3.83224813]
[1773678305878,3.66360243,93.139,93.081,3.83224813]
[1773678306674,3.66360243,93.139,93.08,3.67358803]
[1773678306877,3.66360243,93.139,93.07,3.67358803]
[1773678307074,3.66360243,93.129,93.071,3.83224813]
[1773678307682,3.66360243,93.129,93.08,3.67358803]
[1773678308277,3.66360243,93.174,93.081,3.83224813]
[1773678308482,318.82839721,93.192,93.11,3.67358803]
[1773678308483,3.66360243,93.159,93.11,3.67358803]
[1773678308682,3.66360243,93.159,93.101,3.83224813]
[1773678310080,3.67358803,93.18,93.121,3.83224813]
[1773678310287,318.82839721,93.192,93.047,1.86883265]
[1773678310288,3.67358803,93.17,93.11,3.67358803]
[1773678310482,3.66360243,93.169,93.11,3.67358803]
[1773678310780,3.66360243,93.159,93.106,3.83224813]
[1773678311379,3.66360243,93.176,93.12,7.50583616]
[1773678311783,3.67358803,93.17,93.11,3.67358803]
[1773678311988,3.66360243,93.169,93.11,3.67358803]
[1773678312784,3.66360243,93.213,93.15,3.67358803]
[1773678312980,3.66360243,93.213,93.129,3.83224813]
[1773678312981,3.66360243,93.199,93.14,3.67358803]
[1773678315186,3.66360243,93.189,93.14,3.67358803]
[1773678315387,3.66360243,93.189,93.13,3.67358803]
[1773678316188,107.212,93.269,93.092,33.78]
[1773678316189,3.66360243,93.235,93.17,3.67358803]
[1773678316485,19.299,93.262,93.17,3.67358803]
[1773678316486,3.66360243,93.229,93.17,3.67358803]
[1773678316685,3.66360243,93.219,93.156,3.83224813]
[1773678316983,3.66360243,93.219,93.16,3.67358803]
[1773678317191,3.66360243,93.219,93.17,3.67358803]
[1773678317489,3.66360243,93.219,93.16,3.67358803]
[1773678317691,3.66360243,93.209,93.156,3.83224813]
[1773678317983,3.66360243,93.209,93.15,3.67358803]
[1773678318979,3.66360243,93.209,93.16,3.67358803]
[1773678319184,3.66360243,93.209,93.15,3.67358803]
[1773678319785,3.66360243,93.189,93.13,3.67358803]
[1773678321184,3.66360243,93.189,93.131,3.83224813]
[1773678321384,3.66360243,93.189,93.14,3.67358803]
[1773678321581,3.66360243,93.189,93.14,7.50583616]
[1773678322186,3.66360243,93.205,93.15,7.50583616]
[1773678322893,3.83555491,93.199,93.15,3.83224813]
[1773678323091,3.83555491,93.199,93.15,7.50583616]
[1773678323692,3.83555491,93.199,93.151,3.6305803]
[1773678324094,3.67358803,93.22,93.151,3.6305803]
[1773678324095,3.83555491,93.219,93.16,3.67358803]
[1773678324296,3.83555491,93.219,93.16,7.30416833]
[1773678324793,3.83555491,93.209,93.15,3.67358803]
[1773678325596,3.83555491,93.209,93.15,7.30416833]
[1773678326602,3.67358803,93.22,93.161,3.6305803]
[1773678326898,3.83555491,93.225,93.161,3.6305803]
[1773678327091,3.83555491,93.219,93.161,3.6305803]
[1773678328091,3.83555491,93.209,93.161,3.6305803]
[1773678330397,3.68283148,93.24,93.181,3.6305803]
[1773678330597,3.83555491,93.244,93.19,3.68283148]
[1773678330798,3.83555491,93.244,93.092,33.78]
[1773678330799,3.83555491,93.219,93.164,3.6305803]
[1773678331204,3.83555491,93.209,93.148,3.6305803]
[1773678331402,3.83555491,93.209,93.15,7.31341178]
[1773678331603,3.83555491,93.209,93.151,3.6305803]
[1773678333003,3.83555491,93.209,93.16,3.68283148]
[1773678333205,3.83555491,93.209,93.151,3.6305803]
[1773678335512,3.83555491,93.209,93.141,3.6305803]
[1773678335808,3.83555491,93.209,93.15,3.68283148]
[1773678336511,3.83555491,93.199,93.141,3.6305803]
[1773678340608,3.83555491,93.199,93.098,33.76]
[1773678340609,3.83555491,93.189,93.123,3.6305803]
[1773678341006,3.83555491,93.189,93.13,3.68283148]
[1773678341204,3.83555491,93.225,93.131,3.6305803]
[1773678341408,3.83555491,93.226,93.17,3.68283148]
[1773678341911,3.83555491,93.219,93.161,3.6305803]
[1773678343113,3.83555491,93.219,93.171,3.6305803]
[1773678346314,3.83555491,93.219,93.16,3.68283148]
[1773678348722,3.83555491,93.209,93.154,3.6305803]
[1773678350122,3.83555491,93.209,93.098,33.76]
[1773678350123,3.83555491,93.209,93.161,3.6305803]
[1773678350325,3.83555491,93.209,93.17,3.68283148]
[1773678351515,3.83555491,93.24,93.19,3.68283148]
[1773678352521,3.77565408,93.239,93.18,3.68283148]
[1773678352718,3.77565408,93.239,93.171,3.6305803]
[1773678352922,3.77565408,93.229,93.171,3.6305803]
[1773678353127,3.77565408,93.229,93.18,3.68283148]
[1773678353924,3.77565408,93.229,93.171,3.6305803]
[1773678355628,3.77565408,93.229,93.16,3.68283148]
[1773678356131,3.91706226,93.219,93.16,3.68283148]
[1773678356528,3.91706226,93.219,93.17,3.68283148]
[1773678356729,3.91706226,93.219,93.171,3.62252234]
[1773678360028,3.91706226,93.219,93.117,26.27363503]
[1773678360029,3.91706226,93.189,93.125,3.62252234]
[1773678360325,3.91706226,93.179,93.125,3.62252234]
[1773678361132,3.91706226,93.189,93.131,3.62252234]
[1773678361733,7.59989374,93.2,93.141,3.62252234]
[1773678362933,3.91706226,93.199,93.141,3.62252234]
[1773678363533,3.91706226,93.199,93.07,26.72081938]
[1773678363534,3.91706226,93.215,93.151,3.62252234]
[1773678363936,3.91706226,93.209,93.151,3.62252234]
[1773678365428,3.91706226,93.209,93.14,3.68283148]
[1773678365629,3.91706226,93.199,93.141,3.62252234]
[1773678366030,3.91706226,93.199,93.15,3.68283148]
[1773678367129,3.91706226,93.199,93.151,3.62252234]
[1773678368029,3.91706226,93.199,93.109,33.76]
[1773678368030,3.91706226,93.199,93.136,3.62252234]
[1773678368733,3.91706226,93.199,93.14,3.68283148]
[1773678369034,3.91706226,93.199,93.141,3.62252234]
[1773678372835,7.59989374,93.19,93.141,3.62252234]
[1773678373036,3.68283148,93.15,93.099,19.94734472]
[1773678373338,9.88475125,93.21,93.023,19.348]
[1773678373339,3.68283148,93.16,93.101,3.62252234]
[1773678373542,3.91706226,93.162,93.101,3.62252234]
[1773678374634,3.91706226,93.159,93.101,3.62252234]
[1773678375643,3.68283148,93.17,93.101,3.62252234]
[1773678375936,3.91706226,93.175,93.06,33.76]
[1773678375937,3.91706226,93.175,93.121,3.62252234]
[1773678376533,3.91706226,93.19,93.141,3.62252234]
[1773678377443,7.59989374,93.19,93.141,3.62252234]
[1773678377944,3.91706226,93.189,93.13,3.68283148]
[1773678378337,3.91706226,93.189,93.125,3.62252234]
[1773678379940,3.91706226,93.179,93.125,3.62252234]
[1773678380551,3.91706226,93.179,93.089,33.76]
[1773678380552,3.91706226,93.169,93.111,3.62252234]
[1773678381954,19.315,93.187,93.111,3.62252234]
[1773678381955,7.59989374,93.16,93.111,3.62252234]
[1773678382542,3.91706226,93.16,93.111,3.62252234]
[1773678383349,3.68748762,93.175,93.111,3.62252234]
[1773678383656,3.68748762,93.175,93.13,3.68283148]
[1773678383851,3.68748762,93.169,93.11,3.68283148]
[1773678384557,3.68748762,93.169,93.11,7.27129033]
[1773678384752,3.68748762,93.169,93.11,3.58845885]
[1773678384958,3.68748762,93.159,93.11,3.58845885]
[1773678385158,3.68748762,93.159,93.11,7.27129033]
[1773678386251,3.68748762,93.159,93.092,3.58845885]
[1773678386652,3.68748762,93.18,93.121,3.58845885]
[1773678387546,3.68748762,93.179,93.121,3.58845885]
[1773678391350,3.68748762,93.179,93.12,3.68588934]
[1773678391351,3.68748762,93.169,93.105,3.58845885]
[1773678391554,3.68748762,93.169,93.11,3.68588934]
[1773678392353,3.68748762,93.169,93.111,3.58845885]
[1773678392557,3.68748762,93.169,93.121,3.58845885]
[1773678392753,3.68748762,93.189,93.131,3.58845885]
[1773678392955,3.68748762,93.205,93.16,3.68588934]
[1773678393157,3.68748762,93.222,93.17,3.68588934]
[1773678393352,3.68748762,93.222,93.161,3.58845885]
[1773678393556,3.68748762,93.219,93.16,3.68588934]
[1773678393851,3.68588934,93.23,93.171,3.58845885]
[1773678394659,3.68748762,93.229,93.171,3.58845885]
[1773678395561,3.68748762,93.219,93.16,3.68588934]
[1773678398261,3.68748762,93.219,93.153,3.58845885]
[1773678399361,3.68748762,93.219,93.161,3.58845885]
[1773678400363,3.68748762,93.219,93.104,32.16]
[1773678400364,3.68748762,93.199,93.142,3.58845885]
[1773678401466,3.68748762,93.199,93.14,3.68588934]
[1773678401862,3.68748762,93.189,93.13,3.68588934]
[1773678402166,3.68748762,93.189,93.13,7.27434819]
[1773678402558,3.68748762,93.189,93.131,3.58845885]
[1773678402759,3.68748762,93.189,93.14,3.68588934]
[1773678403669,3.68748762,93.205,93.15,3.68588934]
[1773678403871,3.68748762,93.205,93.141,3.58845885]
[1773678404171,3.68748762,93.205,93.15,3.68588934]
[1773678404370,3.68748762,93.205,93.141,3.58845885]
[1773678404571,3.68748762,93.205,93.15,3.68588934]
[1773678405073,3.68748762,93.205,93.141,3.58845885]
[1773678405968,3.68748762,93.205,93.15,3.68588934]
[1773678406772,3.68748762,93.205,93.141,3.58845885]
[1773678406973,3.68748762,93.199,93.141,3.58845885]
[1773678408273,3.68748762,93.199,93.15,3.68588934]
[1773678409071,3.68748762,93.199,93.141,3.58845885]
[1773678409274,3.68748762,93.199,93.15,3.68588934]
[1773678410578,3.68748762,93.199,93.141,3.58845885]
[1773678411472,3.68748762,93.199,93.15,3.68588934]
[1773678412370,3.68748762,93.199,93.108,20.03647747]
[1773678412571,3.68748762,93.199,93.099,33.76]
[1773678412572,3.59166059,93.189,93.131,3.696118]
[1773678412776,3.59166059,93.204,93.141,3.696118]
[1773678413173,3.59166059,93.204,93.151,3.696118]
[1773678413672,3.60741093,93.219,93.161,3.72381375]
[1773678413878,3.60741093,93.219,93.101,19.332]
[1773678413879,11.68922485,93.231,93.18,7.40970309]
[1773678414074,3.60741093,93.231,93.19,3.68588934]
[1773678414675,3.60741093,93.231,93.181,3.72381375]
[1773678416978,3.60741093,93.255,93.2,3.68588934]
[1773678417173,3.60741093,93.272,93.22,3.68588934]
[1773678417772,3.60741093,93.259,93.2,3.68588934]
[1773678418479,3.60741093,93.274,93.22,3.68588934]
[1773678418980,3.60741093,93.274,93.164,462.46045496]
[1773678418981,3.60741093,93.274,93.23,3.68588934]
[1773678419174,3.60741093,93.299,93.231,3.72381375]
[1773678419377,3.60741093,93.299,93.24,3.68588934]
[1773678419569,3.60741093,93.289,93.22,3.68588934]
[1773678419775,8.06399576,93.308,93.22,3.68588934]
[1773678419776,3.60741093,93.279,93.22,3.68588934]
[1773678420077,3.60741093,93.269,93.21,3.68588934]
[1773678420278,3.68588934,93.28,93.211,3.72381375]
[1773678420479,3.60741093,93.286,93.221,3.72381375]
[1773678420682,3.60741093,93.286,93.23,7.40970309]
[1773678421079,3.60741093,93.286,93.24,3.68588934]
[1773678421383,3.60741093,93.286,93.231,3.72381375]
[1773678422075,3.60741093,93.286,93.24,3.68588934]
[1773678422474,3.60741093,93.302,93.241,3.72381375]
[1773678422672,3.60741093,93.302,93.25,3.68588934]
[1773678422878,3.60741093,93.322,93.261,3.72381375]
[1773678423179,3.60741093,93.322,93.172,19.318]
[1773678423180,3.60741093,93.309,93.245,3.72381375]
[1773678423482,3.68588934,93.29,93.23,7.40970309]
[1773678423684,3.60741093,93.29,93.231,3.72381375]
[1773678423878,33.76,93.326,93.251,3.72381375]
[1773678423879,3.60741093,93.325,93.251,3.72381375]
[1773678424082,3.60741093,93.309,93.25,3.68588934]
[1773678424283,3.60741093,93.309,93.245,3.72381375]
[1773678425081,3.60741093,93.299,93.245,3.72381375]
[1773678426085,3.60741093,93.299,93.251,3.72381375]
[1773678426380,3.68588934,93.31,93.251,3.72381375]
[1773678426581,3.60741093,93.331,93.28,3.68588934]
[1773678426974,33.76,93.366,93.271,3.72381375]
[1773678426975,3.60741093,93.329,93.271,3.72381375]
[1773678427380,3.60741093,93.319,93.255,3.72381375]
[1773678427577,19.28,93.353,93.255,3.72381375]
[1773678427578,3.60741093,93.309,93.255,3.72381375]
[1773678427777,3.60741093,93.309,93.24,3.68588934]
[1773678427778,3.68588934,93.3,93.24,7.40970309]
[1773678427978,3.68588934,93.3,93.241,3.72381375]
[1773678428182,3.60741093,93.325,93.261,3.72381375]
[1773678428588,3.60741093,93.319,93.261,3.72381375]
[1773678431090,3.68588934,93.31,93.261,3.72381375]
[1773678431490,7.29330027,93.31,93.261,3.72381375]
[1773678431687,7.29330027,93.31,93.25,3.68588934]
[1773678431688,3.68588934,93.29,93.239,3.72381375]
[1773678431986,3.68588934,93.28,93.221,3.72381375]
[1773678432385,3.60741093,93.279,93.221,3.72381375]
[1773678432583,3.68588934,93.27,93.221,3.72381375]
[1773678432784,3.60741093,93.279,93.221,3.72381375]
[1773678433794,3.60741093,93.269,93.205,3.72381375]
[1773678434491,3.60741093,93.269,93.21,3.68588934]
[1773678435090,3.60741093,93.259,93.205,3.72381375]
[1773678435287,3.60741093,93.239,93.188,3.72381375]
[1773678435789,3.68588934,93.25,93.188,3.72381375]
[1773678435995,3.68588934,93.25,93.191,3.72381375]
[1773678436295,3.60741093,93.249,93.191,3.72381375]
[1773678436496,3.68588934,93.23,93.173,3.72381375]
[1773678437295,3.68588934,93.22,93.173,3.72381375]
[1773678437594,3.60741093,93.229,93.173,3.72381375]
[1773678439900,3.68588934,93.22,93.173,3.72381375]
[1773678440197,7.29330027,93.22,93.173,3.72381375]
[1773678440698,3.68588934,93.21,93.157,3.72381375]
[1773678441594,7.29330027,93.2,93.14,7.40970309]
[1773678441790,7.29330027,93.2,93.141,3.72381375]
[1773678441994,3.60741093,93.2,93.15,3.68588934]
[1773678442393,3.60741093,93.2,93.15,7.62219081]
[1773678443594,7.29330027,93.2,93.15,3.93630147]
[1773678444287,3.60741093,93.2,93.151,3.93630147]
[1773678444490,3.68588934,93.21,93.151,3.93630147]
[1773678445088,3.7538892,93.209,93.151,3.93630147]
[1773678445698,0.06794828,93.19,93.151,3.93630147]
[1773678447293,0.06794828,93.19,93.16,7.62013041]
[1773678447500,0.06794828,93.19,93.161,3.93630147]
[1773678447797,3.7538892,93.209,93.161,3.93630147]
[1773678449300,3.7538892,93.199,93.144,3.93630147]
[1773678450598,3.7538892,93.199,93.15,3.68382894]
[1773678451796,19.306,93.231,93.144,3.93630147]
[1773678451797,3.7538892,93.189,93.144,3.93630147]
[1773678452301,0.06815755,93.184,93.144,3.93630147]
[1773678452599,0.06815755,93.184,93.15,3.68382894]
[1773678452796,0.06815755,93.184,93.15,7.62013041]
[1773678452996,0.06815755,93.184,93.15,3.93630147]
[1773678455406,3.7538892,93.179,93.134,3.93630147]
[1773678457300,3.7538892,93.228,93.141,3.93630147]
[1773678457601,3.7538892,93.209,93.151,3.93630147]
[1773678458302,3.7538892,93.209,93.106,33.78]
[1773678458303,3.7538892,93.209,93.161,3.93630147]
[1773678461497,3.68382894,93.24,93.18,3.68382894]
[1773678461707,3.7538892,93.239,93.18,3.68382894]
[1773678462008,3.7538892,93.239,93.171,3.93630147]
[1773678462009,3.68382894,93.23,93.171,3.93630147]
[1773678462206,3.7538892,93.229,93.171,3.93630147]
[1773678463003,3.7538892,93.219,93.171,3.93630147]
[1773678463211,3.7538892,93.209,93.156,3.93630147]
[1773678463808,3.68382894,93.2,93.14,3.68382894]
[1773678464111,19.31,93.21,93.137,3.93630147]
[1773678464112,3.68382894,93.19,93.137,3.93630147]
[1773678464514,3.7538892,93.199,93.137,3.93630147]
[1773678465917,3.68382894,93.19,93.137,3.93630147]
[1773678466116,3.7538892,93.189,93.137,3.93630147]
[1773678466417,0.06780382,93.177,93.137,3.93630147]
[1773678467318,0.06780382,93.177,93.141,3.93630147]
[1773678467817,3.7538892,93.189,93.141,3.93630147]
[1773678469520,3.7538892,93.223,93.141,3.93630147]
[1773678469718,3.7538892,93.223,93.161,3.93630147]
[1773678470321,3.7538892,93.239,93.181,3.93630147]
[1773678475318,3.90166659,93.229,93.17,7.54025178]
[1773678475622,3.90166659,93.229,93.171,3.85642284]
[1773678476820,0.06789855,93.209,93.171,3.85642284]
[1773678477620,0.06789855,93.209,93.16,3.68382894]
[1773678478019,0.06789855,93.209,93.156,3.85642284]
[1773678478020,3.96956514,93.209,93.156,3.85642284]
[1773678478323,19.301,93.252,93.156,3.85642284]
[1773678478324,7.58549553,93.2,93.156,3.85642284]
[1773678480020,3.90166659,93.2,93.156,3.85642284]
[1773678480221,3.68382894,93.21,93.156,3.85642284]
[1773678480525,3.90166659,93.215,93.156,3.85642284]
[1773678480725,7.58549553,93.21,93.156,3.85642284]
[1773678480926,19.305,93.232,93.106,33.78]
[1773678480927,3.90166659,93.199,93.14,7.54025178]
[1773678481326,3.90166659,93.199,93.141,3.85642284]
[1773678482426,3.90166659,93.199,93.151,3.85642284]
[1773678482829,3.68382894,93.21,93.151,3.85642284]
[1773678483024,7.58549553,93.21,93.151,3.85642284]
[1773678483330,3.90166659,93.199,93.151,3.85642284]
[1773678488027,8.01435418,93.223,93.151,3.85642284]
[1773678488234,3.90166659,93.231,93.18,3.68382894]
[1773678488435,3.90166659,93.231,93.181,3.85642284]
[1773678488933,3.90166659,93.231,93.13,20.00613476]
[1773678488934,3.90166659,93.219,93.162,3.85642284]
[1773678489133,0.06797675,93.215,93.162,3.85642284]
[1773678489525,0.06797675,93.215,93.17,7.54025178]
[1773678489731,0.06797675,93.215,93.171,3.85642284]
[1773678490031,3.90166659,93.219,93.171,3.85642284]
[1773678492131,0.06805121,93.204,93.171,3.85642284]
[1773678493629,3.90166659,93.203,93.15,3.85642284]
[1773678493831,0.06805121,93.204,93.15,3.85642284]
[1773678493832,3.90166659,93.199,93.15,3.85642284]
[1773678494135,3.90166659,93.199,93.151,3.85642284]
[1773678494834,3.90166659,93.214,93.161,3.85642284]
[1773678495033,3.90166659,93.229,93.171,3.85642284]
[1773678495230,3.68382894,93.25,93.181,3.85642284]
[1773678495430,3.90166659,93.249,93.19,3.68382894]
[1773678498139,3.90166659,93.239,93.181,3.85642284]
[1773678498739,3.90166659,93.229,93.17,3.68382894]
[1773678499239,3.90166659,93.229,93.171,3.85642284]
[1773678501140,3.90166659,93.229,93.181,3.85642284]
[1773678507443,3.90166659,93.229,93.17,3.68382894]
[1773678507748,3.90166659,93.229,93.17,7.52132813]
[1773678508742,3.90166659,93.229,93.17,7.51970935]
[1773678510344,3.90166659,93.229,93.171,3.83749919]
[1773678510647,3.91321097,93.256,93.2,7.51970935]
[1773678510850,3.91321097,93.256,93.201,3.83749919]
[1773678511348,3.91321097,93.249,93.201,3.83749919]
[1773678511957,3.91321097,93.249,93.19,3.68221016]
[1773678512342,3.91321097,93.239,93.19,3.68221016]
[1773678513952,3.91321097,93.259,93.191,3.83749919]
[1773678514754,0.06771389,93.234,93.191,3.83749919]
[1773678518252,0.06771389,93.234,93.117,19.329]
[1773678518253,3.91321097,93.26,93.211,3.83749919]
[1773678520860,3.91321097,93.26,93.2,3.68221016]
[1773678520861,3.91321097,93.259,93.2,3.68221016]
[1773678521558,3.91321097,93.259,93.195,3.83749919]
[1773678521757,3.91321097,93.249,93.195,3.83749919]
[1773678521959,3.91321097,93.239,93.195,3.83749919]
[1773678525662,3.68221016,93.23,93.18,7.51970935]
[1773678525865,3.91321097,93.229,93.18,3.83749919]
[1773678528362,3.91321097,93.255,93.2,3.68221016]
[1773678528666,3.91321097,93.255,93.211,3.83749919]
[1773678529056,3.91321097,93.269,93.211,3.83749919]
[1773678531562,3.91321097,93.259,93.231,0.0677672]
[1773678532066,3.91321097,93.259,93.211,3.83749919]
[1773678533464,3.91321097,93.259,93.226,0.06774273]
[1773678536670,3.69341008,93.274,93.226,0.06774273]
[1773678536865,3.69341008,93.274,93.226,3.65903416]
[1773678537169,3.69341008,93.274,93.226,3.59129143]
[1773678537963,3.69341008,93.274,93.23,3.68221016]
[1773678538769,3.69341008,93.274,93.226,3.59129143]
[1773678541972,3.69341008,93.291,93.231,3.59129143]
[1773678543167,3.69341008,93.289,93.252,0.06804897]
[1773678544575,3.69341008,93.303,93.252,3.6593404]
[1773678545068,3.69341008,93.303,93.252,3.59129143]
[1773678545964,7.37562024,93.3,93.252,3.59129143]
[1773678546273,3.69341008,93.299,93.252,3.59129143]
[1773678547670,3.69341008,93.279,93.231,3.59129143]
[1773678549576,3.69341008,93.294,93.231,3.59129143]
[1773678549981,3.69341008,93.289,93.231,3.59129143]
[1773678550275,3.69341008,93.279,93.231,3.59129143]
[1773678553969,3.69341008,93.279,93.246,0.06817302]
[1773678557374,19.29,93.306,93.246,0.06817302]
[1773678557375,3.69341008,93.299,93.246,0.06817302]
[1773678557971,3.69341008,93.315,93.25,7.27350159]
[1773678558175,3.69341008,93.309,93.251,3.59129143]
[1773678561779,3.68221016,93.3,93.217,3.59129143]
[1773678561982,3.69341008,93.299,93.241,3.59129143]
[1773678564685,3.69341008,93.299,93.261,0.06820315]
[1773678565587,3.75979763,93.319,93.262,3.91694319]
[1773678565787,3.75979763,93.319,93.27,7.59915335]
[1773678566589,3.75979763,93.319,93.285,0.06781099]
[1773678571291,3.75979763,93.333,93.285,0.06781099]
[1773678571493,3.75979763,93.333,93.285,3.98475418]
[1773678571894,19.281,93.349,93.27,3.67470451]
[1773678571895,3.75979763,93.329,93.27,3.67470451]
[1773678572098,3.75979763,93.329,93.271,3.91694319]
[1773678575800,3.67470451,93.33,93.271,3.91694319]
[1773678576002,3.75979763,93.339,93.271,3.91694319]
[1773678576897,3.75979763,93.329,93.271,3.91694319]
[1773678577297,3.75979763,93.319,93.271,3.91694319]
[1773678578001,3.75979763,93.319,93.286,0.06808762]
[1773678578999,3.75979763,93.309,93.286,0.06808762]
[1773678579500,3.75979763,93.309,93.258,3.91694319]
[1773678579898,3.75979763,93.309,93.288,0.06766952]
[1773678581405,3.67470451,93.32,93.288,0.06766952]
[1773678581706,3.75979763,93.319,93.288,0.06766952]
[1773678582802,3.75979763,93.309,93.257,3.91694319]
[1773678583805,3.67470451,93.32,93.262,3.91694319]
[1773678584009,7.43450214,93.32,93.262,3.91694319]
[1773678584308,3.75979763,93.319,93.262,3.91694319]
[1773678584710,0.06760956,93.3,93.262,3.91694319]
[1773678588403,3.75979763,93.299,93.25,3.67470451]
[1773678588604,3.75979763,93.279,93.224,3.91694319]
[1773678591512,3.75979763,93.279,93.22,3.67470451]
[1773678591513,3.75979763,93.279,93.231,3.91694319]
[1773678591709,3.75979763,93.292,93.241,3.91694319]
[1773678592512,3.76805738,93.306,93.241,3.91694319]
[1773678592709,3.76805738,93.299,93.251,3.63064448]
[1773678593013,3.67470451,93.31,93.251,3.63064448]
[1773678593710,3.76805738,93.314,93.261,3.90172181]
[1773678595013,0.06808443,93.297,93.261,3.90172181]
[1773678595418,0.06808443,93.297,93.271,3.90172181]
[1773678595914,3.76805738,93.314,93.271,3.90172181]
[1773678601911,3.67470451,93.33,93.281,3.90172181]
[1773678601912,3.81395021,93.33,93.281,3.90172181]
[1773678602322,3.81395021,93.329,93.27,3.67470451]
[1773678602524,3.81395021,93.329,93.27,7.57642632]
[1773678602717,3.81395021,93.329,93.271,3.90172181]
[1773678603221,3.81395021,93.329,93.281,3.90172181]
[1773678603718,3.81395021,93.289,93.236,3.90172181]
[1773678607420,3.81395021,93.279,93.221,3.90172181]
[1773678609425,3.81395021,93.249,93.193,3.90172181]
[1773678609820,3.67470451,93.25,93.193,3.90172181]
[1773678610022,3.81395021,93.263,93.211,3.90172181]
[1773678611325,3.81395021,93.278,93.22,3.67470451]
[1773678611625,53.051,93.303,93.21,7.57642632]
[1773678611626,3.81395021,93.269,93.21,7.57642632]
[1773678612129,3.81395021,93.269,93.211,3.90172181]
[1773678613123,3.81395021,93.269,93.221,3.90172181]
[1773678613323,3.67470451,93.29,93.231,3.90172181]
[1773678613324,3.81395021,93.283,93.231,3.90172181]
[1773678614129,3.81395021,93.279,93.22,3.67470451]
[1773678614424,3.81395021,93.279,93.221,3.90172181]
[1773678615329,3.81395021,93.269,93.221,3.90172181]
[1773678616123,3.81395021,93.269,93.207,3.90172181]
[1773678616734,3.81395021,93.259,93.207,3.90172181]
[1773678618237,0.06772375,93.242,93.207,3.90172181]
[1773678619531,0.06772375,93.242,93.174,33.76]
[1773678619532,3.81395021,93.274,93.211,3.90172181]
[1773678619734,3.81395021,93.274,93.221,3.90172181]
[1773678620038,33.76,93.311,93.201,3.90172181]
[1773678620039,3.81395021,93.249,93.201,3.90172181]
[1773678620531,3.81395021,93.239,93.185,3.90172181]
[1773678620739,33.76,93.3,93.169,3.90172181]
[1773678620740,3.81395021,93.229,93.169,3.90172181]
[1773678620940,3.81395021,93.219,93.169,3.90172181]